[Event "European School-ch 2019"]
[Site "Mamaia"]
[Date "2019.06.04"]
[Round "5.55"]
[White "Vorobyova, Ekaterina"]
[Black "Bubeeva, Larisa"]
[Result "1-0"]
[ECO "D35"]
[WhiteElo "1795"]
[BlackElo "1548"]
[Annotator "NA RC"]
[PlyCount "83"]
[EventDate "2019.05.31"]
[EventType "swiss"]
[EventCountry "ROU"]
[SourceTitle "playchess.com"]
[Source "ChessBase"]
[SourceQuality "1"]
[TimeControl "40/5400+30:1800+30"]

1. d4 {[%emt 0:00:00]} Nf6 {[%emt 0:00:00]} 2. c4 {[%emt 0:00:00]} e6 {[%emt 0:00:00]} 3. Nc3 {[%emt 0:00:00]} d5 {[%emt 0:00:00]} 4. cxd5 {[%emt 0:00:11]} exd5 {[%emt 0:00:10]} 5. Bg5 {[%emt 0:00:09]} Be7 {[%emt 0:00:56]} 6. Qc2 {[%emt 0:00:24]} Be6 {[%emt 0:06:05]} 7. e3 {[%emt 0:00:40]} Nbd7 {[%emt 0:00:57]} 8. Bd3 {[%emt 0:00:38]} h6 {[%emt 0:00:59]} 9. Bh4 {[%emt 0:01:48]} a6 {[%emt 0:03:48]} 10. Nge2 {[%emt 0:01:36]} O-O {[%emt 0:10:37]} 11. O-O {[%emt 0:00:54]} Nb6 {[%emt 0:11:11]} 12. Rad1 {[%emt 0:05:21]} Rc8 {[%emt 0:06:00]} 13. Nf4 {[%emt 0:08:24]} c5 {[%emt 0:05:00]} 14. dxc5 {[%emt 0:06:45]} Rxc5 {[%emt 0:04:20]} 15. Qe2 {[%emt 0:08:02]} Qd6 {[%emt 0:09:45]} 16. Bb1 {[%emt 0:04:13]} g6 {[%emt 0:00:00]} 17. Bxf6 {[%emt 0:01:35]} Bxf6 {[%emt 0:07:16]} 18. Ne4 {[%emt 0:00:18]} Qe7 {[%emt 0:04:34]} 19. Nxc5 {[%emt 0:00:27]} Qxc5 {[%emt 0:00:09]} 20. Nxe6 {[%emt 0:00:38]} fxe6 {[%emt 0:00:05]} 21. Qd3 {[%emt 0:01:28]} Bg7 {[%emt 0:02:44]} 22. Qxg6 {[%emt 0:00:25]} Rf6 {[%emt 0:00:35]} 23. Qe8+ {[%emt 0:01:07]} Qf8 {[%emt 0:00:06]} 24. Qxf8+ {[%emt 0:00:18]} Rxf8 {[%emt 0:00:09]} 25. b3 {[%emt 0:00:05]} Nd7 {[%emt 0:01:55]} 26. Rc1 {[%emt 0:00:24]} b6 {[%emt 0:02:00]} 27. Rc7 {[%emt 0:00:32]} Rd8 {[%emt 0:00:42]} 28. Rfc1 {[%emt 0:00:24]} a5 {[%emt 0:00:51]} 29. Rc8 {[%emt 0:00:22]} Rxc8 {[%emt 0:00:12]} 30. Rxc8+ {[%emt 0:00:05]} Kf7 {[%emt 0:00:16]} 31. Bd3 {[%emt 0:00:39]} Nc5 {[%emt 0:00:53]} 32. Bb5 {[%emt 0:01:35]} d4 {[%emt 0:00:44]} 33. Rc7+ {[%emt 0:02:45]} Kf8 {[%emt 0:00:40]} 34. exd4 {[%emt 0:00:37]} Bxd4 {[%emt 0:00:36]} 35. Kf1 {[%emt 0:01:15]} Ne4 {[%emt 0:07:48]} 36. f3 {[%emt 0:00:15]} Nd6 {[%emt 0:02:41]} 37. Bd3 {[%emt 0:02:47]} b5 {[%emt 0:03:48]} 38. Rd7 {[%emt 0:00:52]} Bc5 {[%emt 0:00:06]} 39. Ke2 {[%emt 0:01:57]} b4 {[%emt 0:00:56]} 40. g4 {[%emt 0:00:00]} Nf7 {[%emt 0:00:00]} 41. f4 {[%emt 0:02:05]} e5 {[%emt 0:01:42]} 42. Bc4 {[%emt 0:00:21]} 1-0

[Event "European School-ch 2019"]
[Site "Mamaia"]
[Date "2019.06.05"]
[Round "6.4"]
[White "Zemnitskiy, Alexander"]
[Black "Bulau, Andrei-Cristian"]
[Result "1-0"]
[ECO "D00"]
[WhiteElo "2024"]
[BlackElo "2244"]
[Annotator "RC"]
[PlyCount "117"]
[EventDate "2019.05.31"]
[EventType "swiss"]
[EventCountry "ROU"]
[SourceTitle "playchess.com"]
[Source "ChessBase"]
[SourceQuality "1"]
[TimeControl "40/5400+30:1800+30"]

1. d4 {[%emt 0:00:00]} d5 {[%emt 0:00:00]} 2. Bf4 {[%emt 0:00:00]} c5 {[%emt 0:00:00]} 3. e3 {[%emt 0:00:33]} Nf6 {[%emt 0:01:44]} 4. c3 {[%emt 0:00:40]} Nc6 {[%emt 0:00:13]} 5. Nd2 {[%emt 0:08:23]} Qb6 {[%emt 0:02:57]} 6. Qb3 {[%emt 0:00:27]} c4 {[%emt 0:01:16]} 7. Qc2 {[%emt 0:00:01]} g6 {[%emt 0:01:02]} 8. Ngf3 {[%emt 0:00:56]} Bf5 {[%emt 0:00:08]} 9. Qc1 {[%emt 0:00:01]} Bg7 {[%emt 0:00:42]} 10. Be2 {[%emt 0:00:13]} O-O {[%emt 0:00:38]} 11. O-O {[%emt 0:00:22]} Nh5 {[%emt 0:02:45]} 12. Bg5 {[%emt 0:01:57]} h6 {[%emt 0:01:10]} 13. Bh4 {[%emt 0:00:23]} g5 {[%emt 0:02:10]} 14. Bg3 {[%emt 0:01:41]} Nxg3 {[%emt 0:03:47]} 15. hxg3 {[%emt 0:00:03]} Rac8 {[%emt 0:01:04]} 16. Bd1 {[%emt 0:07:00]} Bd3 {[%emt 0:08:49]} 17. Re1 {[%emt 0:00:16]} f5 {[%emt 0:03:35]} 18. Bc2 {[%emt 0:00:48]} Be4 {[%emt 0:00:05]} 19. Nh2 {[%emt 0:03:34]} e5 {[%emt 0:04:55]} 20. Nxe4 {[%emt 0:04:10]} fxe4 {[%emt 0:01:01]} 21. Qd2 {[%emt 0:02:40]} exd4 {[%emt 0:01:34]} 22. exd4 {[%emt 0:00:08]} Rf7 {[%emt 0:03:20]} 23. Rab1 {[%emt 0:03:18]} Rcf8 {[%emt 0:01:49]} 24. f3 {[%emt 0:00:48]} exf3 {[%emt 0:16:06]} 25. Nxf3 {[%emt 0:02:32]} Qc7 {[%emt 0:13:25]} 26. g4 {[%emt 0:01:24]} Qd6 {[%emt 0:15:47]} 27. Re2 {[%emt 0:02:57]} Re7 {[%emt 0:01:44]} 28. Rbe1 {[%emt 0:03:17]} Rfe8 {[%emt 0:00:13]} 29. Bf5 {[%emt 0:01:49]} Rxe2 {[%emt 0:00:33]} 30. Rxe2 {[%emt 0:00:01]} Rxe2 {[%emt 0:00:01]} 31. Qxe2 {[%emt 0:00:02]} Kf7 {[%emt 0:00:48]} 32. Nd2 {[%emt 0:02:06]} Bf6 {[%emt 0:03:13]} 33. Nf1 {[%emt 0:01:33]} b5 {[%emt 0:00:49]} 34. a3 {[%emt 0:01:30]} a5 {[%emt 0:00:08]} 35. Qf3 {[%emt 0:05:28]} b4 {[%emt 0:01:07]} 36. axb4 {[%emt 0:00:03]} axb4 {[%emt 0:00:03]} 37. Ne3 {[%emt 0:04:45]} Ne7 {[%emt 0:01:27]} 38. Bb1 {[%emt 0:02:20]} bxc3 {[%emt 0:01:10]} 39. bxc3 {[%emt 0:00:06]} Qa3 {[%emt 0:01:13]} 40. Nxd5 {[%emt 0:00:00]} Qc1+ {[%emt 0:00:00]} 41. Kh2 {[%emt 0:03:45]} Nxd5 {[%emt 0:04:05]} 42. Qxd5+ {[%emt 0:00:34]} Kg7 {[%emt 0:01:33]} 43. Qd7+ {[%emt 0:01:28]} Kf8 {[%emt 0:00:41]} 44. Bg6 {[%emt 0:01:05]} Qf4+ {[%emt 0:00:52]} 45. Kh3 {[%emt 0:00:35]} Qe3+ {[%emt 0:03:31]} 46. g3 {[%emt 0:00:33]} Qe7 {[%emt 0:00:32]} 47. Qd5 {[%emt 0:02:38]} Kg7 {[%emt 0:02:25]} 48. Be4 {[%emt 0:00:35]} Qc7 {[%emt 0:01:59]} 49. Qf5 {[%emt 0:00:50]} Qe7 {[%emt 0:01:29]} 50. Qg6+ {[%emt 0:01:21]} Kf8 {[%emt 0:00:30]} 51. Bd5 {[%emt 0:01:30]} Bg7 {[%emt 0:00:39]} 52. Bxc4 {[%emt 0:00:49]} Qb7 {[%emt 0:01:50]} 53. Qf5+ {[%emt 0:00:38]} Ke8 {[%emt 0:00:53]} 54. Bd5 {[%emt 0:00:54]} Qe7 {[%emt 0:00:58]} 55. Bc6+ {[%emt 0:01:22]} Kd8 {[%emt 0:00:34]} 56. Qa5+ {[%emt 0:00:56]} Qc7 {[%emt 0:00:48]} 57. Qd5+ {[%emt 0:00:51]} Ke7 {[%emt 0:00:39]} 58. Qe4+ {[%emt 0:01:27]} Kd6 {[%emt 0:00:46]} 59. Qg6+ {[%emt 0:00:35] Kd5} 1-0

[Event "European School-ch 2019"]
[Site "Mamaia"]
[Date "2019.06.05"]
[Round "6.5"]
[White "Ozdemir, Serhan Berat"]
[Black "Farcadi, Hunor"]
[Result "1-0"]
[ECO "B30"]
[WhiteElo "1950"]
[BlackElo "2049"]
[Annotator "NA RC"]
[PlyCount "37"]
[EventDate "2019.05.31"]
[EventType "swiss"]
[EventCountry "ROU"]
[SourceTitle "playchess.com"]
[Source "ChessBase"]
[SourceQuality "1"]
[TimeControl "40/5400+30:1800+30"]

1. e4 {[%emt 0:00:00]} c5 {[%emt 0:00:07]} 2. Nf3 {[%emt 0:00:00]} Nc6 {[%emt 0:00:29]} 3. Bb5 {[%emt 0:00:00]} Qc7 {[%emt 0:01:12]} 4. O-O {[%emt 0:00:22]} a6 {[%emt 0:00:18]} 5. Bxc6 {[%emt 0:00:05]} dxc6 {[%emt 0:00:04]} 6. d4 {[%emt 0:00:11]} cxd4 7. Qxd4 {[%emt 0:00:09]} Bg4 {[%emt 0:05:56]} 8. Ne5 $16 {[%emt 0:00:10]} Rd8 {[%emt 0:05:55]} 9. Qc3 {[%emt 0:00:05]} Bh5 {[%emt 0:05:24]} 10. Bf4 {[%emt 0:03:55]} Qc8 {[%emt 0:01:03]} 11. Nd2 {[%emt 0:03:30]} Nf6 {[%emt 0:04:50]} 12. Rfe1 {[%emt 0:01:36]} e6 {[%emt 0:01:52]} 13. Ndc4 {[%emt 0:06:07]} Bc5 {[%emt 0:03:35]} 14. Nd3 {[%emt 0:02:37]} Bd4 {[%emt 0:03:34]} 15. Qa3 {[%emt 0:01:29]} Bg6 {[%emt 0:03:20]} 16. Nd6+ {[%emt 0:02:08]} Rxd6 {[%emt 0:00:05]} 17. Qxd6 {[%emt 0:00:35]} Ba7 {[%emt 0:00:55]} 18. Bg5 {[%emt 0:10:06]} Nxe4 {[%emt 0:02:14]} 19. Qe7# {[%emt 0:00:06]} 1-0

[Event "European School-ch 2019"]
[Site "Mamaia"]
[Date "2019.06.05"]
[Round "6.8"]
[White "Neshev, Nikola"]
[Black "Tinarlioglu, Emre"]
[Result "0-1"]
[ECO "B90"]
[WhiteElo "1370"]
[BlackElo "1907"]
[Annotator "NA RC"]
[PlyCount "54"]
[EventDate "2019.05.31"]
[EventType "swiss"]
[EventCountry "ROU"]
[SourceTitle "playchess.com"]
[Source "ChessBase"]
[SourceQuality "1"]
[TimeControl "40/5400+30:1800+30"]

1. e4 {[%emt 0:00:00]} c5 {[%emt 0:00:00]} 2. Nf3 {[%emt 0:00:00]} d6 {[%emt 0:00:00]} 3. d4 {[%emt 0:00:00]} cxd4 {[%emt 0:00:00]} 4. Nxd4 {[%emt 0:00:00]} Nf6 {[%emt 0:00:00]} 5. Nc3 {[%emt 0:00:00]} a6 {[%emt 0:00:00]} 6. Bc4 {[%emt 0:00:00]} e6 {[%emt 0:00:01]} 7. f3 {[%emt 0:00:00]} Nbd7 {[%emt 0:03:01] B86: Sicilian Scheveningen/Najdorf: 6 Bc4, without early ...b5} 8. Be3 {[%emt 0:00:16]} b5 $2 {[%emt 0:02:54] [#]} (8... Qc7 $11 9. Bb3 Be7) 9. Bb3 $2 {[%emt 0:00:15]} ({White has to play} 9. Bxe6 $1 $18 {[%mdl 512]} Bb7 (9... fxe6 10. Nxe6) 10. Bb3) 9... Nc5 {[%emt 0:00:05]} 10. Qd2 {[%emt 0:04:07]} (10. g4 Qc7 11. Qd2 Bd7 12. g5 Nh5 13. Nce2 a5 14. c3 Nxb3 15. axb3 e5 16. Nc2 Qb7 {1-0 (43) Fernandez Guillen,E (2401)-Quesada Perez,L (2510) Merida 2018}) 10... Bb7 {[%emt 0:01:11]} 11. O-O-O {[%emt 0:00:46]} Be7 {[%emt 0:02:15]} 12. g4 {[%emt 0:01:19]} Rc8 {[%emt 0:04:24]} 13. Kb1 {[%emt 0:08:26]} Qc7 {[%emt 0:05:29]} 14. Rhe1 $146 {[%emt 0:06:43]} ({Predecessor:} 14. g5 Nfd7 15. h4 Nb6 16. h5 b4 17. Nce2 Nxb3 18. axb3 {1-0 (31) Pinto,A (1935)-Cardani,R (1950) Bergamo 2009}) 14... Nfd7 {[%emt 0:20:02]} 15. Bg5 {[%emt 0:03:03]} Nxb3 {[%emt 0:18:37]} 16. cxb3 {[%emt 0:00:33]} Nf6 {[%emt 0:02:13]} 17. f4 {[%emt 0:02:30]} b4 {[%emt 0:03:42]} 18. Nd5 {[%emt 0:06:06]} exd5 {[%emt 0:07:36]} 19. exd5 $19 {[%emt 0:02:01]} (19. Nf5 $1 $15 dxe4 20. Nxg7+ Kf8 21. Nf5) 19... O-O {[%emt 0:01:41]} 20. Nf5 {[%emt 0:02:12]} Bd8 {[%emt 0:03:11]} 21. Re3 {[%emt 0:23:14]} Nxd5 {[%emt 0:04:22]} 22. Rh3 {[%emt 0:00:50]} Bxg5 {[%emt 0:06:12]} 23. fxg5 {[%emt 0:02:37]} Rfe8 {[%emt 0:00:43]} 24. Qd3 {[%emt 0:01:14]} Nc3+ {[%emt 0:01:04]} 25. bxc3 {[%emt 0:01:24]} Be4 {[%emt 0:00:05]} 26. Qxe4 {[%emt 0:01:34]} Rxe4 {[%emt 0:00:05]} 27. Nxd6 {[%emt 0:00:13]} bxc3 {[%emt 0:00:54]} 0-1

[Event "European School-ch 2019"]
[Site "Mamaia"]
[Date "2019.06.05"]
[Round "6.10"]
[White "Ochedzan, Tymon"]
[Black "Radojicic, Aleksandar M"]
[Result "1-0"]
[ECO "B42"]
[WhiteElo "2064"]
[BlackElo "1906"]
[Annotator "NA RC"]
[PlyCount "103"]
[EventDate "2019.05.31"]
[EventType "swiss"]
[EventCountry "ROU"]
[SourceTitle "playchess.com"]
[Source "ChessBase"]
[SourceQuality "1"]
[TimeControl "40/5400+30:1800+30"]

1. e4 {[%emt 0:00:00]} c5 {[%emt 0:00:00]} 2. Nf3 {[%emt 0:00:00]} e6 {[%emt 0:00:00]} 3. d4 {[%emt 0:00:00]} cxd4 {[%emt 0:00:03]} 4. Nxd4 {[%emt 0:00:06]} a6 {[%emt 0:00:24]} 5. Bd3 {[%emt 0:01:20]} Nf6 {[%emt 0:01:01]} 6. O-O {[%emt 0:00:35]} Qc7 {[%emt 0:00:14]} 7. Qe2 {[%emt 0:01:10]} d6 {[%emt 0:00:31]} 8. f4 {[%emt 0:02:29]} Nbd7 {[%emt 0:15:21]} 9. c4 {[%emt 0:02:55]} g6 {[%emt 0:01:06] B42: Sicilian: Kan Variation: 5 Bd3} (9... Be7 10. Nc3 O-O 11. Kh1 b6 12. Bd2 Re8 13. Rae1 Bb7 14. Nf3 e5 15. Nd5 Bxd5 16. cxd5 exf4 17. Bxf4 Bf8 18. Bg5 h6 19. Bxf6 Nxf6 {0-1 (42) Saric,I (2687)-Fedorchuk,S (2607) Bastia 2018}) 10. f5 {[%emt 0:03:40]} e5 {[%emt 0:12:33]} 11. Ne6 {[%emt 0:04:21]} fxe6 {[%emt 0:08:09]} 12. fxe6 {[%emt 0:00:10]} Bg7 {[%emt 0:12:59]} 13. exd7+ {[%emt 0:00:57]} Bxd7 {[%emt 0:03:29]} 14. Nc3 {[%emt 0:04:54]} Bg4 $146 {[%emt 0:11:17]} ({Predecessor:} 14... O-O 15. Be3 Be6 16. Rac1 Qd7 17. Nd5 Nxd5 18. Rxf8+ Rxf8 19. cxd5 {1-0 (31) Shyam,S (2534)-Stubberud,O (2248) Leiden 2017}) 15. Nd5 {[%emt 0:08:18]} Qc5+ {[%emt 0:03:39]} 16. Qe3 {[%emt 0:01:49]} Nxd5 {[%emt 0:13:04]} 17. Qxc5 {[%emt 0:05:23]} ({Much weaker is} 17. exd5 Qxe3+ 18. Bxe3 Rc8 $11) 17... dxc5 {[%emt 0:00:11]} 18. exd5 {[%emt 0:04:02]} (18. cxd5 $16 Rc8 19. b3) 18... O-O-O {[%emt 0:09:44]} 19. Bg5 {[%emt 0:15:22]} Rde8 {[%emt 0:04:28]} 20. Be4 {[%emt 0:14:05]} Rhf8 {[%emt 0:01:12]} 21. Be3 {[%emt 0:09:31]} b6 {[%emt 0:00:31]} 22. Rae1 {[%emt 0:02:31]} Bf5 {[%emt 0:00:26]} 23. Bf2 {[%emt 0:00:52]} Kd7 {[%emt 0:00:27]} 24. h3 {[%emt 0:02:16]} Kd6 {[%emt 0:00:26]} 25. Re2 {[%emt 0:01:20]} Bxe4 {[%emt 0:00:29]} 26. Rxe4 {[%emt 0:00:04]} Rc8 {[%emt 0:00:38]} 27. Rfe1 {[%emt 0:01:11]} Rce8 {[%emt 0:00:30]} 28. b3 {[%emt 0:04:11]} Rf5 {[%emt 0:00:27]} 29. Bg3 {[%emt 0:00:43]} Rff8 {[%emt 0:00:32]} 30. Rf1 {[%emt 0:01:53]} Rd8 {[%emt 0:00:36]} 31. Rf3 {[%emt 0:00:35]} Rf5 {[%emt 0:00:31]} 32. Kf2 {[%emt 0:00:33]} Rdf8 {[%emt 0:00:25]} 33. Bh2 {[%emt 0:01:02]} R8f7 $14 {[%emt 0:00:26]} 34. Ree3 {[%emt 0:02:21]} Bh6 {[%emt 0:00:30]} 35. Rxe5 {[%emt 0:00:58]} Rxf3+ 36. gxf3 {[%emt 0:00:06]} Kd7 {[%emt 0:01:09]} 37. Re6 {[%emt 0:00:42]} b5 {[%emt 0:00:15]} 38. Rxa6 {[%emt 0:00:30]} bxc4 {[%emt 0:00:28]} 39. bxc4 {[%emt 0:00:51]} Rf8 {[%emt 0:00:13]} 40. Ra7+ {[%emt 0:00:00]} Kc8 {[%emt 0:00:00]} 41. Rc7+ {[%emt 0:02:52]} Kd8 {[%emt 0:00:16]} 42. Rxc5 {[%emt 0:00:26]} Re8 {[%emt 0:00:10]} 43. Ra5 {[%emt 0:01:26]} Be3+ {[%emt 0:00:26]} 44. Kf1 {[%emt 0:00:50]} Kd7 {[%emt 0:00:17]} 45. c5 {[%emt 0:01:22]} Rc8 {[%emt 0:00:22]} 46. c6+ {[%emt 0:00:28]} Ke8 {[%emt 0:00:07]} 47. Ke2 {[%emt 0:00:31]} Bd4 {[%emt 0:00:17]} 48. Kd3 {[%emt 0:00:19]} Bf2 {[%emt 0:00:11]} 49. Kc4 {[%emt 0:00:38]} Kd8 {[%emt 0:00:28]} 50. Rb5 {[%emt 0:00:27]} Ba7 {[%emt 0:00:18]} 51. Rb7 {[%emt 0:00:29]} Ra8 {[%emt 0:00:05]} 52. c7+ {[%emt 0:00:48]} 1-0

[Event "European School-ch 2019"]
[Site "Mamaia"]
[Date "2019.06.05"]
[Round "6.11"]
[White "Balan, Bogdan"]
[Black "Ovcharenko, Hryhoriy"]
[Result "1-0"]
[ECO "A41"]
[WhiteElo "2027"]
[BlackElo "1740"]
[Annotator "NA RC"]
[PlyCount "81"]
[EventDate "2019.05.31"]
[EventType "swiss"]
[EventCountry "ROU"]
[SourceTitle "playchess.com"]
[Source "ChessBase"]
[SourceQuality "1"]
[TimeControl "40/5400+30:1800+30"]

1. d4 {[%emt 0:00:00]} d6 {[%emt 0:00:00]} 2. c4 {[%emt 0:00:00]} e5 {[%emt 0:00:00]} 3. d5 {[%emt 0:01:16]} f5 {[%emt 0:00:00]} 4. Nc3 {[%emt 0:00:21]} Nf6 {[%emt 0:00:18]} 5. g3 {[%emt 0:01:04]} Be7 {[%emt 0:02:18]} 6. Bg2 {[%emt 0:00:30] A41: 1 d4 d6: Tartakower System and Modern Defence} Nbd7 {[%emt 0:01:44]} (6... O-O 7. Nf3 a5 8. e4 Na6 9. exf5 Bxf5 10. O-O Qd7 11. Ng5 Nc5 12. Be3 Ng4 13. Nge4 Nxe4 14. Nxe4 {1-0 (59) Ponkratov,P (2613)-Sjugirov,S (2650) Riadh 2017}) 7. Nf3 {[%emt 0:02:22]} a5 {[%emt 0:03:47]} 8. O-O {[%emt 0:01:17]} O-O {[%emt 0:00:18]} 9. e4 $146 {[%emt 0:06:16]} ({Predecessor:} 9. b3 Nc5 10. Qc2 f4 11. gxf4 exf4 12. Ba3 Ng4 13. Nd4 {0-1 (34) Hejazipour,M (2297)-Pourkashiyan,A (2312) Teheran 2014}) 9... fxe4 {[%emt 0:11:36]} 10. Ng5 {[%emt 0:03:58]} Nc5 {[%emt 0:01:16]} 11. Ngxe4 {[%emt 0:01:29]} Nfxe4 {[%emt 0:01:29]} 12. Nxe4 {[%emt 0:00:29]} Nxe4 {[%emt 0:00:14]} 13. Bxe4 {[%emt 0:00:02]} g6 {[%emt 0:06:01]} 14. Bh6 {[%emt 0:02:25]} Rf7 {[%emt 0:00:53]} 15. Qc2 {[%emt 0:04:30]} Bf5 {[%emt 0:07:23]} 16. f4 {[%emt 0:04:05]} exf4 {[%emt 0:17:09]} 17. Rxf4 {[%emt 0:03:40]} Bg5 {[%emt 0:08:27]} 18. Bxg5 {[%emt 0:00:57]} Qxg5 {[%emt 0:00:06]} 19. Bxf5 {[%emt 0:02:03]} Rxf5 {[%emt 0:01:12]} 20. Rxf5 {[%emt 0:00:17]} Qxf5 {[%emt 0:00:46]} 21. Qxf5 {[%emt 0:00:21]} gxf5 {[%emt 0:00:04]} 22. Rf1 {[%emt 0:00:13]} Rf8 {[%emt 0:00:12]} 23. Kg2 {[%emt 0:00:40]} Kg7 {[%emt 0:00:09]} 24. Re1 {[%emt 0:00:26]} h6 {[%emt 0:02:23]} (24... Kf7 $14) 25. Kf3 {[%emt 0:00:16]} Rf7 {[%emt 0:00:48]} 26. Kf4 {[%emt 0:00:31]} b6 {[%emt 0:00:18]} 27. b3 {[%emt 0:01:34]} Kf8 {[%emt 0:02:00]} 28. Re6 {[%emt 0:00:58]} Kg7 {[%emt 0:00:09]} 29. Re2 {[%emt 0:00:30]} Kh7 {[%emt 0:00:12]} 30. a3 {[%emt 0:01:28]} Kg6 {[%emt 0:00:12]} 31. b4 {[%emt 0:00:26]} axb4 {[%emt 0:00:06]} 32. axb4 {[%emt 0:00:01]} Kg7 {[%emt 0:00:23]} 33. c5 {[%emt 0:00:29]} bxc5 {[%emt 0:01:08]} 34. bxc5 {[%emt 0:00:06]} dxc5 {[%emt 0:00:55]} 35. Rc2 {[%emt 0:00:12]} Kf6 $11 {[%emt 0:02:08]} 36. Rxc5 {[%emt 0:00:11]} Rd7 {[%emt 0:00:29]} 37. h3 {[%emt 0:04:44]} Rd6 {[%emt 0:02:04]} 38. h4 {[%emt 0:01:06]} Rd7 {[%emt 0:02:04]} 39. Rc6+ {[%emt 0:00:38]} Rd6 {[%emt 0:00:15]} 40. Rxd6+ {[%emt 0:00:00]} cxd6 {[%emt 0:00:00]} 41. h5 {[%emt 0:00:30]} 1-0

[Event "European School-ch 2019"]
[Site "Mamaia"]
[Date "2019.06.05"]
[Round "6.12"]
[White "Dobre, Radu-Fabian"]
[Black "Silich, Yahor"]
[Result "0-1"]
[ECO "B31"]
[WhiteElo "1978"]
[BlackElo "2082"]
[Annotator "NA RC"]
[PlyCount "88"]
[EventDate "2019.05.31"]
[EventType "swiss"]
[EventCountry "ROU"]
[SourceTitle "playchess.com"]
[Source "ChessBase"]
[SourceQuality "1"]
[TimeControl "40/5400+30:1800+30"]

1. e4 {[%emt 0:00:00]} c5 {[%emt 0:00:22]} 2. Nf3 {[%emt 0:00:00]} Nc6 {[%emt 0:00:05]} 3. Bb5 {[%emt 0:00:00]} g6 {[%emt 0:00:32]} 4. O-O {[%emt 0:00:20]} Bg7 {[%emt 0:00:25]} 5. Re1 {[%emt 0:00:07]} Nf6 {[%emt 0:01:05]} 6. e5 {[%emt 0:00:34]} Nd5 {[%emt 0:01:25]} 7. Nc3 {[%emt 0:00:20]} Nc7 {[%emt 0:00:51]} 8. Bxc6 {[%emt 0:00:06]} dxc6 {[%emt 0:00:12]} 9. Ne4 {[%emt 0:00:05]} Ne6 {[%emt 0:00:44]} 10. d3 {[%emt 0:00:36]} O-O {[%emt 0:01:34]} 11. Be3 {[%emt 0:00:28]} b6 {[%emt 0:00:43]} 12. Qd2 {[%emt 0:00:35]} Nd4 {[%emt 0:08:11]} 13. Nxd4 {[%emt 0:00:09]} cxd4 {[%emt 0:00:02]} 14. Bh6 {[%emt 0:00:00]} Qd7 {[%emt 0:11:47] B31: Sicilian: 2...Nc6 3 Bb5 g6} (14... c5 15. h4 Qd5 16. Bxg7 Kxg7 17. Ng3 Bb7 18. f3 Qe6 19. b3 {½-½ (19) Bacrot,E (2714)-Moiseenko,A (2699) Tromsoe 2013}) 15. Ng3 $146 {[%emt 0:05:13]} ({Predecessor:} 15. Bxg7 Kxg7 16. Qg5 h6 17. Qh4 c5 18. e6 fxe6 19. Re2 Bb7 20. Rae1 Rae8 21. f3 Bd5 22. b3 {1-0 (40) Jurcik,M (2496)-Kamody,M (2244) Slovakia 2012}) 15... f5 {[%emt 0:15:21]} 16. exf6 {[%emt 0:18:29]} exf6 {[%emt 0:00:09]} 17. Bxg7 {[%emt 0:00:09]} Kxg7 {[%emt 0:02:27]} 18. Re2 {[%emt 0:09:28]} Bb7 {[%emt 0:02:20]} 19. Rae1 {[%emt 0:07:18]} Rae8 {[%emt 0:00:49]} 20. f4 {[%emt 0:06:31]} c5 {[%emt 0:03:51]} 21. b3 {[%emt 0:05:55]} Bd5 {[%emt 0:12:59]} 22. f5 {[%emt 0:04:46]} g5 {[%emt 0:05:17]} 23. Nh5+ {[%emt 0:07:14]} Kf7 {[%emt 0:00:10]} 24. c4 {[%emt 0:00:13]} dxc3 {[%emt 0:09:47]} 25. Qxc3 {[%emt 0:00:01]} Qd8 {[%emt 0:03:41]} 26. Rxe8 {[%emt 0:00:18]} Rxe8 {[%emt 0:00:01]} 27. Rxe8 {[%emt 0:00:01]} Kxe8 {[%emt 0:00:01]} 28. Nxf6+ {[%emt 0:00:01]} Kf7 {[%emt 0:00:08]} 29. Nxd5 {[%emt 0:00:09]} Qxd5 {[%emt 0:00:02]} 30. Qc4 {[%emt 0:00:00]} Qxc4 {[%emt 0:00:22]} 31. dxc4 {[%emt 0:00:05]} g4 {[%emt 0:00:04]} 32. Kf2 {[%emt 0:09:47]} Kf6 {[%emt 0:00:06]} 33. Kg3 {[%emt 0:01:19]} Kxf5 {[%emt 0:00:20]} 34. Kh4 {[%emt 0:01:24]} Kf4 {[%emt 0:00:40]} 35. g3+ {[%emt 0:09:32]} Kf3 {[%emt 0:04:39]} 36. Kg5 {[%emt 0:00:13]} Kg2 {[%emt 0:05:05]} 37. Kxg4 {[%emt 0:00:06]} Kxh2 {[%emt 0:00:02]} 38. Kf3 {[%emt 0:00:06]} Kg1 {[%emt 0:04:58]} 39. g4 {[%emt 0:00:58]} h6 {[%emt 0:03:24]} 40. Kg3 {[%emt 0:00:00]} Kf1 {[%emt 0:00:00]} 41. Kh3 {[%emt 0:11:05]} Kf2 {[%emt 0:03:35]} 42. Kh2 {[%emt 0:02:04]} Kf3 {[%emt 0:00:59]} 43. Kh3 {[%emt 0:00:24]} Kf4 {[%emt 0:04:51]} 44. Kh4 {[%emt 0:00:14]} Ke4 $15 {[%emt 0:01:48]} (44... Ke3 $19 45. Kh5 Kf3) 0-1